bitfinex/quotes_ETHUSD_20250605
["timestamp","ask_amount","ask_price","bid_price","bid_amount"]
[1749143516333,30.0,2571.3,2571.2,1.962]
[1749143516638,30.0,2571.4,2571.2,21.85123459]
[1749143516836,30.0,2571.4,2571.3,3.88908334]
[1749143516995,30.0,2571.4,2570.9,0.813]
[1749143517199,4.71908311,2571.1,2571.0,19.88953714]
[1749143517396,11.58908311,2571.1,2571.0,3.88953714]
[1749143517594,6.87,2571.1,2571.0,3.88953714]
[1749143517840,0.36382454,2571.2,2571.1,3.88925493]
[1749143518033,6.869,2571.2,2571.1,4.43925493]
[1749143518221,6.869,2571.2,2571.0,21.50742179]
[1749143518222,5.09185761,2571.6,2571.3,3.88908334]
[1749143518424,6.869,2571.5,2571.4,3.88884525]
[1749143518809,40.0,2571.4,2571.0,16.0]
[1749143519014,4.71908311,2571.4,2571.3,3.88908334]
[1749143519224,5.08247203,2571.4,2571.3,3.88908334]
[1749143519943,0.36353787,2571.4,2571.3,3.88900498]
[1749143520257,6.869,2571.4,2571.3,3.88900498]
[1749143520615,6.869,2571.4,2571.3,3.88908334]
[1749143521041,37.23253589,2571.4,2571.3,3.88908334]
[1749143521445,37.23253589,2571.4,2571.1,4.43929757]
[1749143521446,41.95162149,2571.4,2571.1,4.43929757]
[1749143521650,30.0,2571.2,2571.1,0.55]
[1749143521956,30.0,2571.3,2570.7,0.7668]
[1749143522154,4.71908311,2570.9,2570.8,16.0]
[1749143522316,11.58708311,2570.9,2570.7,16.0]
[1749143522838,0.36402806,2570.8,2570.6,21.85204978]
[1749143523044,30.0,2570.8,2570.6,17.962]
[1749143523243,4.71908311,2570.7,2570.6,1.962]
[1749143523733,35.52798311,2570.7,2570.6,1.962]
[1749143524053,42.39498311,2570.7,2570.6,1.962]
[1749143524516,42.75841284,2570.7,2570.6,1.962]
[1749143525018,41.58608311,2570.7,2570.6,1.962]
[1749143525214,30.0,2570.6,2570.5,3.89027781]
[1749143525416,30.0,2570.6,2570.3,4.44050548]
[1749143525761,4.71908311,2570.5,2570.3,4.44050548]
[1749143526052,6.867,2570.4,2570.3,4.44050548]
[1749143526247,6.867,2570.4,2570.2,16.0]
[1749143526469,6.867,2570.4,2570.2,19.89074002]
[1749143526856,6.867,2570.4,2570.1,1.975]
[1749143527156,30.0,2570.2,2570.1,1.975]
[1749143529323,6.867,2570.2,2570.1,1.975]
[1749143529723,36.867,2570.2,2570.1,1.975]
[1749143529955,36.867,2570.2,2570.1,5.86586762]
[1749143529956,6.866,2570.2,2570.1,5.86586762]
[1749143530139,6.866,2570.2,2570.1,1.975]
[1749143530539,0.37123352,2570.7,2570.2,3.8907478]
[1749143530763,30.0,2570.8,2570.4,3.89033334]
[1749143531067,6.866,2570.7,2570.5,4.44017593]
[1749143531234,6.866,2570.6,2570.3,4.44048427]
[1749143531439,40.0,2570.5,2570.3,5.1675753]
[1749143531640,30.0,2570.5,2570.3,5.1675753]
[1749143531866,30.0,2570.5,2570.3,0.55]
[1749143532162,30.0,2570.5,2570.3,4.44050105]
[1749143532467,16.61850237,2571.6,2570.5,0.55]
[1749143532768,30.0,2571.0,2570.9,3.88968843]
[1749143533074,6.866,2571.0,2570.9,4.43968843]
[1749143533256,34.71908311,2571.2,2571.1,3.88938586]
[1749143533577,30.0,2571.1,2571.0,3.88947505]
[1749143533863,30.0,2571.1,2570.9,4.4395887]
[1749143534071,30.0,2571.1,2570.7,0.8214]
[1749143534072,4.71908311,2571.0,2570.7,0.8214]
[1749143534370,11.58408311,2571.0,2570.7,19.8898898]
[1749143534589,4.71908311,2570.8,2570.5,1.955]
[1749143534767,6.865,2570.7,2570.5,5.84527399]
[1749143535082,6.865,2570.7,2570.5,1.955]
[1749143535292,34.71908311,2570.6,2570.5,1.955]
[1749143535468,38.60923283,2570.6,2570.1,0.02]
[1749143535669,4.71908311,2570.3,2570.2,16.0]
[1749143535990,11.58308311,2570.3,2570.1,0.02]
[1749143536173,16.864,2570.3,2570.2,3.8907478]
[1749143536340,6.864,2570.3,2570.1,3.91082193]
[1749143536746,30.0,2570.5,2570.2,3.8907478]
[1749143537077,6.864,2570.4,2570.2,0.55]
[1749143537490,6.864,2570.4,2570.1,4.46087545]
[1749143538890,6.864,2570.4,2570.1,0.02]
[1749143539063,30.0,2570.3,2570.1,0.02]
[1749143539577,30.0,2570.3,2570.1,3.9108849]
[1749143539745,6.864,2570.4,2570.2,3.8907478]
[1749143539945,6.864,2570.4,2570.1,3.91079253]
[1749143540145,30.0,2570.3,2570.1,0.02]
[1749143540472,30.0,2570.3,2570.2,3.8907478]
[1749143541079,6.864,2570.4,2570.3,3.89059642]
[1749143541948,30.0,2570.8,2570.6,3.8900708]
[1749143542348,36.862,2570.7,2570.6,3.8900708]
[1749143542881,36.862,2570.7,2570.2,3.89070213]
[1749143542882,30.0,2570.6,2570.2,3.89070213]
[1749143543471,40.0,2570.4,2570.2,3.89071413]
[1749143543784,6.862,2570.3,2570.1,0.02]
[1749143543987,11.58108311,2570.3,2570.1,0.02]
[1749143544392,33.8907478,2570.2,2570.1,0.02]
[1749143544681,30.0,2570.2,2570.1,0.02]
[1749143545454,33.8907478,2570.2,2570.1,0.02]
[1749143545854,35.09448928,2570.2,2570.1,0.02]
[1749143547305,35.09449421,2570.2,2570.1,0.02]
[1749143547484,36.43109567,2570.2,2570.1,0.02]
[1749143547687,41.95449421,2570.2,2570.1,0.02]
[1749143547887,35.09449421,2570.2,2570.1,0.02]
[1749143548090,41.95449421,2570.2,2570.1,0.02]
[1749143548493,35.09449421,2570.2,2570.1,0.02]
[1749143548662,41.95449421,2570.2,2570.1,0.02]
[1749143549460,38.06374641,2570.2,2570.1,0.02]
[1749143550405,38.06374641,2570.2,2570.1,3.91089918]
[1749143550710,38.06374641,2570.2,2570.1,0.02]
[1749143550909,30.0,2570.2,2570.1,3.91089918]
[1749143551111,4.71908311,2570.5,2570.1,3.91089918]
[1749143551408,30.0,2570.3,2570.2,3.89072535]
[1749143551587,30.0,2570.3,2570.1,3.91083749]
[1749143551786,34.71908311,2570.3,2570.1,0.02]
[1749143552109,44.71908311,2570.4,2570.1,3.91089911]
[1749143552308,6.859,2570.2,2570.1,0.02]
[1749143553009,30.0,2570.3,2570.1,0.02]
[1749143553213,36.859,2570.2,2570.1,3.89089918]
[1749143553410,30.0,2570.1,2569.7,3.89150484]
[1749143553613,40.0,2569.9,2569.7,16.0]
[1749143553816,4.71908311,2570.0,2569.6,16.0]
[1749143553817,30.0,2569.7,2569.6,16.0]
[1749143553970,30.0,2569.7,2569.5,16.0]
[1749143554176,30.0,2569.7,2569.6,3.89165628]
[1749143555510,30.0,2569.7,2569.5,16.0]
[1749143555812,30.0,2569.7,2569.6,3.89165628]
[1749143556001,30.0,2570.0,2569.7,3.89150247]
[1749143556202,40.0,2569.8,2569.6,3.89153246]
[1749143556402,40.0,2569.8,2569.5,3.89179903]
[1749143556403,30.0,2569.8,2569.7,3.89150484]
[1749143556572,30.0,2569.8,2569.6,3.89155907]
[1749143556776,30.0,2570.0,2569.4,16.55]
[1749143557012,30.0,2570.0,2569.9,3.89120199]
[1749143557211,6.857,2570.0,2569.9,3.89120199]
[1749143557414,0.8282,2570.3,2570.1,3.89074952]
[1749143557574,17.73080256,2570.6,2570.2,3.89070293]
[1749143557575,30.0,2570.5,2570.2,3.89070293]
[1749143557784,36.857,2570.4,2570.3,3.89052642]
[1749143558383,30.0,2570.4,2570.3,3.89052642]
[1749143558597,30.0,2570.5,2570.4,3.89044506]
[1749143558810,36.856,2570.5,2569.9,16.0]
[1749143559121,30.0,2570.4,2570.3,3.89059642]
[1749143559427,30.0,2570.4,2570.2,3.89072957]
[1749143559587,6.856,2570.3,2570.2,3.89072957]
[1749143560201,8.27201808,2570.6,2570.3,3.89048248]
[1749143560402,36.855,2570.5,2570.0,0.55]
[1749143560723,30.0,2570.4,2570.3,3.89059642]
[1749143561569,30.0,2570.4,2570.2,3.89068176]
[1749143561694,30.0,2570.4,2570.1,3.89080998]
[1749143562229,0.8023,2570.3,2570.0,3.89096296]
[1749143562425,30.0,2570.1,2569.9,3.89116834]
[1749143562612,30.0,2570.1,2570.0,3.89105058]
[1749143563132,30.0,2570.2,2570.1,3.89089918]
[1749143563342,6.854,2570.2,2570.1,3.89089918]
[1749143563551,30.36366162,2570.5,2570.0,0.55]
[1749143563691,7.21766006,2570.4,2570.2,3.8907478]
[1749143563894,0.36366006,2570.3,2570.2,3.8907478]
[1749143564498,7.21673935,2570.3,2570.2,3.8907478]
[1749143564929,7.21674244,2570.3,2570.1,3.89081014]
[1749143565131,6.853,2570.3,2569.9,0.8307]
[1749143565341,6.853,2570.3,2570.1,3.89083827]
[1749143565549,1.08626692,2570.2,2569.9,4.72184032]
[1749143565745,0.36375738,2570.1,2569.8,5.83928402]
[1749143566049,6.853,2570.0,2569.9,3.89120199]
[1749143567453,16.853,2570.0,2569.9,3.89120199]
[1749143567743,7.21681133,2570.0,2569.9,3.89120199]
[1749143568049,6.853,2570.0,2569.9,3.89120199]
[1749143571227,7.21691625,2570.0,2569.9,3.89120199]
[1749143571420,6.853,2570.0,2569.9,3.89120199]
[1749143571725,0.37250501,2570.4,2570.2,3.89065564]
[1749143571909,10.0,2570.5,2570.0,0.55]
[1749143571910,0.37250501,2570.5,2570.0,0.55]
[1749143572107,7.21288246,2570.4,2570.3,3.89059642]
[1749143572313,6.849,2570.4,2570.3,3.89059642]
[1749143572533,7.21288271,2570.4,2570.3,3.89059642]
[1749143572749,7.21288267,2570.4,2570.3,3.89059642]
[1749143573044,6.849,2570.4,2570.3,3.89059642]
[1749143573454,6.849,2570.4,2570.2,3.89066088]
[1749143573762,6.849,2570.4,2570.3,3.89059642]
[1749143573933,36.849,2570.4,2570.3,3.89059642]
[1749143574135,30.37250501,2570.4,2570.3,3.89059642]
[1749143574350,30.0,2570.3,2570.0,0.55]
[1749143574852,30.0,2570.3,2570.2,3.8907478]
[1749143575226,6.848,2570.4,2570.3,3.89059642]
[1749143575412,30.0,2570.3,2570.2,3.89064506]
[1749143575752,30.36388324,2570.3,2570.2,3.89064506]
[1749143575959,36.848,2570.4,2570.3,3.89059642]
[1749143576139,37.22063876,2570.4,2570.3,3.89059642]
[1749143576318,37.58451904,2570.4,2570.3,3.89059642]
[1749143576519,37.58451832,2570.4,2570.3,3.89059642]
[1749143576749,37.58451737,2570.4,2570.3,3.89059642]
[1749143576933,37.22063876,2570.4,2570.3,3.89059642]
[1749143577318,30.37263876,2570.4,2570.3,3.89059642]
[1749143577515,37.21963876,2570.4,2570.3,3.89059642]
[1749143578022,37.58364457,2570.4,2570.3,3.89059642]
[1749143578338,41.21963876,2570.4,2570.3,3.89059642]
[1749143578651,10.847,2570.4,2570.3,3.89059642]
[1749143578851,4.0,2570.4,2570.3,3.89059642]
[1749143579054,10.846,2570.4,2570.3,3.89059642]
[1749143579255,4.0,2570.4,2570.3,3.89059642]
[1749143579417,10.845,2570.4,2570.3,3.89059642]
[1749143579924,10.845,2570.4,2570.1,3.89083808]
[1749143579925,10.845,2570.4,2570.2,3.89069236]
[1749143580154,10.845,2570.4,2570.3,3.89059642]
[1749143580826,4.0,2570.4,2570.3,3.89059642]
[1749143581028,4.0,2570.4,2570.3,22.00622761]
[1749143581430,30.0,2571.2,2571.1,3.88938586]
[1749143581624,36.844,2571.2,2571.1,3.88938586]
[1749143581963,4.72308399,2571.6,2571.4,3.88892917]
[1749143582131,6.844,2571.5,2571.2,3.88923459]
[1749143582332,0.37226874,2571.6,2571.4,3.88890408]
[1749143582529,16.844,2571.5,2571.4,3.88890408]
[1749143582756,17.20785966,2571.5,2571.3,3.88902056]
[1749143582972,40.0,2571.5,2571.4,3.88893209]
[1749143583287,37.107438,2571.7,2571.6,3.88862964]
[1749143583434,44.31425194,2571.7,2571.6,3.88862964]
[1749143583634,37.107438,2571.7,2571.6,3.88862964]
[1749143583844,44.31424358,2571.7,2571.6,3.88862964]
[1749143584121,43.950438,2571.7,2571.6,3.88862964]
[1749143584372,43.950438,2571.7,2571.5,4.67902293]
[1749143585250,43.950438,2571.7,2571.5,0.7903]
[1749143585983,43.950438,2571.7,2571.5,4.67906245]
[1749143586190,43.950438,2571.7,2571.3,3.88894288]
[1749143586475,43.950438,2571.7,2571.3,16.0]
[1749143586638,43.950438,2571.7,2571.4,3.88891559]
[1749143586839,43.950438,2571.7,2571.6,3.88862964]
[1749143587035,37.107438,2571.7,2571.5,4.43872491]
[1749143587236,6.84,2571.6,2571.5,4.43872491]
[1749143587447,37.107438,2571.7,2571.6,3.88862964]
[1749143587671,37.107438,2571.7,2571.6,20.43862964]
[1749143587891,43.947438,2571.7,2571.6,20.43862964]
[1749143589547,43.945438,2571.7,2571.6,20.43862964]
[1749143590685,37.107438,2571.7,2571.6,21.62186948]
[1749143591449,43.943438,2571.7,2571.6,21.62186948]
[1749143591985,43.943438,2571.7,2571.6,23.55986948]
[1749143592664,37.107438,2571.7,2571.6,23.55986948]
[1749143594287,37.107438,2571.7,2571.6,23.55886948]
[1749143594446,37.107438,2571.7,2571.6,21.62186948]
[1749143594643,43.942438,2571.7,2571.6,23.55886948]
[1749143595480,37.107438,2571.7,2571.6,23.55886948]
[1749143598283,43.939438,2571.7,2571.6,23.55886948]
[1749143598797,37.107438,2571.7,2571.6,23.55886948]
[1749143599087,43.938438,2571.7,2571.6,23.55886948]
[1749143599289,37.107438,2571.7,2571.6,23.55886948]
[1749143599467,43.938438,2571.7,2571.6,23.55886948]
[1749143600752,37.107438,2571.7,2571.6,23.55886948]
[1749143600956,43.937438,2571.7,2571.6,23.55886948]
[1749143602097,43.937438,2571.7,2571.6,23.12642964]
[1749143602301,43.936438,2571.7,2571.6,23.12642964]
[1749143603796,43.936438,2571.7,2571.6,21.82562964]
[1749143604159,43.936438,2571.7,2571.6,22.37562964]
[1749143604359,37.107438,2571.7,2571.6,22.37562964]
[1749143604556,37.107438,2571.7,2571.6,33.64665988]
[1749143605373,37.107438,2571.7,2571.6,24.88265988]
[1749143605586,37.107438,2571.7,2571.6,33.64665988]
[1749143607293,37.107438,2571.7,2571.6,20.64642964]
[1749143607477,37.107438,2571.7,2571.6,4.64642964]
[1749143607677,37.107438,2571.7,2571.6,3.88862964]
[1749143607879,43.932438,2571.7,2571.6,3.88862964]
[1749143608090,43.932438,2571.7,2571.6,19.88862964]
[1749143608290,44.29601876,2571.7,2571.5,5.82571233]
[1749143608496,0.36358076,2571.6,2571.5,6.1504094]
[1749143608696,0.36358076,2571.6,2571.5,22.1504094]
[1749143608882,43.932438,2571.7,2571.6,19.88862964]
[1749143609381,44.29613806,2571.7,2571.6,19.88862964]
[1749143609588,43.932438,2571.7,2571.6,19.88862964]
[1749143609805,44.29613804,2571.7,2571.6,19.88862964]
[1749143610072,44.29613891,2571.7,2571.6,19.88862964]
[1749143610296,44.29613891,2571.7,2571.5,18.26162866]
[1749143610507,43.932438,2571.7,2571.5,2.26162866]
[1749143610687,37.107438,2571.7,2571.6,3.88862964]
[1749143611008,43.931438,2571.7,2571.6,4.43862964]
[1749143611214,37.107438,2571.7,2571.6,7.53522974]
[1749143611411,43.931438,2571.7,2571.6,7.53522974]
[1749143611727,43.930438,2571.7,2571.6,7.53522974]
[1749143612031,43.930438,2571.7,2571.1,0.7885]
[1749143612331,43.930438,2571.7,2571.3,3.88900128]
[1749143612539,43.930438,2571.7,2571.2,0.55]
[1749143612540,0.36363623,2571.6,2571.2,0.55]
[1749143612741,43.930438,2571.7,2571.2,0.55]
[1749143612742,7.18663421,2571.5,2571.4,20.43886587]
[1749143613030,7.18665004,2571.5,2571.4,16.55]
[1749143613245,7.18664588,2571.5,2571.4,19.88893209]
[1749143613588,7.18664588,2571.5,2571.4,3.88893209]
[1749143613785,7.18664683,2571.5,2571.4,3.88893209]
[1749143614018,6.823,2571.5,2571.4,3.88893209]
[1749143614247,37.107438,2571.7,2571.6,4.43862964]
[1749143614451,43.929438,2571.7,2571.6,4.43862964]
[1749143614918,37.47113513,2571.7,2571.6,4.43862964]
[1749143615220,37.47112929,2571.7,2571.6,0.55]
[1749143615542,43.929438,2571.7,2571.6,4.43862964]
[1749143615739,43.929438,2571.7,2571.6,0.55]
[1749143615940,43.929438,2571.7,2571.4,3.88886347]
[1749143615941,44.29312723,2571.7,2571.4,3.88886347]
[1749143616140,43.929438,2571.7,2571.4,3.88886347]
[1749143616453,43.929438,2571.7,2571.3,3.88901189]
[1749143616652,0.36372465,2571.6,2571.3,3.88901189]
[1749143616859,43.929438,2571.7,2571.3,3.88901189]
[1749143616860,6.822,2571.5,2571.3,3.88901189]
[1749143617159,0.8179,2571.3,2570.7,3.88998646]
[1749143617354,6.821,2571.2,2571.0,3.88953345]
[1749143617528,0.8179,2571.3,2570.7,5.81696956]
[1749143617733,0.8179,2571.3,2571.0,3.88939225]
[1749143618041,0.36390742,2571.2,2571.1,3.88927758]
[1749143618247,6.821,2571.2,2571.1,4.43927758]
[1749143618446,10.0,2571.4,2571.2,3.8891629]
[1749143618644,7.18489572,2571.3,2571.2,3.8891629]
[1749143618848,7.18489084,2571.3,2571.2,3.8891629]
[1749143619043,7.18489554,2571.3,2571.1,4.4393451]
[1749143619244,6.821,2571.3,2570.9,3.88955402]
[1749143619446,6.821,2571.3,2571.0,19.88950506]
[1749143619645,30.0,2571.4,2571.2,3.88923459]
[1749143619961,6.82,2571.3,2571.2,3.88923459]
[1749143620172,10.808,2571.5,2571.3,3.88906316]
[1749143620369,10.808,2571.5,2571.2,3.88917453]
[1749143620370,7.18389291,2571.4,2571.2,3.88917453]
[1749143620737,7.18389291,2571.4,2571.1,0.55]
[1749143620738,7.61918929,2571.4,2571.1,4.43933012]
[1749143621053,7.61918929,2571.4,2571.1,3.88936927]
[1749143621262,7.61918929,2571.4,2571.0,20.43945036]
[1749143621449,7.98249143,2571.4,2571.0,20.43945036]
[1749143621650,7.61918929,2571.4,2571.0,20.43945036]
[1749143621984,0.53741217,2571.3,2571.0,3.88946878]
[1749143622285,6.82,2571.2,2571.0,4.43953069]
[1749143622859,6.82,2571.2,2571.0,0.55]
[1749143623061,0.8057,2571.1,2570.8,19.88976737]
[1749143623361,6.819,2571.0,2570.9,3.88968843]
[1749143623762,6.819,2571.0,2570.8,19.88976363]
[1749143624066,6.819,2571.0,2570.9,3.88968843]
[1749143625367,6.819,2571.0,2570.7,5.81696275]
[1749143625368,0.791,2571.5,2571.0,19.88947505]
[1749143625570,6.818,2571.4,2571.0,19.88949538]
[1749143625730,6.818,2571.3,2571.2,3.88915443]
[1749143626162,6.818,2571.3,2571.1,4.43931725]
[1749143626341,6.818,2571.3,2571.0,19.88942082]
[1749143626933,0.791,2571.1,2571.0,16.0]
[1749143627132,7.608,2571.1,2570.8,0.55]
[1749143627645,7.608,2571.1,2570.8,4.43974223]
[1749143628365,7.608,2571.1,2570.7,21.81788599]
[1749143628540,7.608,2571.1,2570.8,3.88982731]
[1749143629359,0.791,2571.1,2570.9,3.88958244]
[1749143629527,6.816,2571.0,2570.7,1.928]
[1749143629729,6.816,2571.0,2570.9,16.0]
[1749143630472,6.816,2571.0,2570.8,3.88983288]
[1749143630667,6.816,2571.0,2570.9,16.0]
[1749143630825,6.816,2571.0,2570.8,16.0]
[1749143631031,6.816,2571.0,2570.9,3.88968843]
[1749143631544,6.816,2571.0,2570.8,19.88976441]
[1749143633985,6.816,2571.0,2570.9,3.88968843]
[1749143634697,3.28499452,2571.4,2571.2,3.88915984]
[1749143634899,7.14249945,2571.3,2571.2,3.88923459]
[1749143635196,3.28499452,2571.4,2571.3,3.88908334]
[1749143635345,10.09899452,2571.4,2571.3,3.88908334]
[1749143635538,10.09899452,2571.4,2571.2,3.88914444]
[1749143635745,10.09899452,2571.4,2571.1,3.88932373]
[1749143635946,2.45939452,2571.4,2571.3,3.88908334]
[1749143636163,9.27339452,2571.4,2571.3,3.88908334]
[1749143636348,9.27239452,2571.4,2571.3,3.88908334]
[1749143637616,2.45939452,2571.4,2571.3,3.88908334]
[1749143637777,2.45939452,2571.4,2571.3,5.21691504]
[1749143637972,9.27239452,2571.4,2571.3,5.21691504]
[1749143638173,2.45939452,2571.4,2571.3,4.43908334]
[1749143638410,9.27139452,2571.4,2571.3,4.43908334]
[1749143638713,9.27139452,2571.4,2570.8,0.818]
[1749143638873,10.02759452,2571.4,2571.1,19.88933795]
[1749143639972,10.02759452,2571.4,2571.1,16.0]
[1749143640177,30.0,2571.3,2570.8,0.818]
[1749143640379,33.88928736,2571.2,2570.7,17.928]
[1749143640671,0.7743,2571.0,2570.7,21.81789886]
[1749143640871,0.7743,2571.0,2570.7,1.928]
[1749143641073,0.7743,2571.0,2570.7,5.81788222]
[1749143641415,0.7743,2571.0,2570.8,16.0]
[1749143641611,0.7743,2571.0,2570.8,3.88982337]
[1749143641790,0.7743,2571.0,2570.7,21.8178652]
[1749143641988,3.88968843,2570.9,2570.7,1.928]
[1749143642337,6.81,2570.8,2570.7,1.928]
[1749143642496,40.69983973,2570.8,2570.7,1.928]
[1749143642670,30.0,2570.7,2570.4,16.0]
[1749143642871,0.8011,2570.6,2570.4,16.0]
[1749143643106,6.81,2570.5,2570.3,16.0]
[1749143643288,6.81,2570.5,2570.3,19.89052196]
[1749143644173,6.81,2570.5,2570.3,16.0]
[1749143644782,6.81,2570.5,2570.3,19.89055942]
[1749143645117,6.81,2570.5,2570.3,16.0]
[1749143645317,6.81,2570.5,2570.3,19.89058669]
[1749143645478,6.81,2570.5,2570.3,16.0]
[1749143645678,6.81,2570.5,2570.3,19.89057924]
[1749143647433,7.57111,2570.5,2570.2,5.8186728]
[1749143647578,30.0,2570.3,2570.2,1.928]
[1749143647888,1.40679146,2570.3,2570.2,1.928]
[1749143649111,0.7674,2570.6,2570.4,3.89035202]
[1749143649332,10.808,2570.5,2570.3,3.89051118]
[1749143649993,10.808,2570.5,2570.2,1.928]
[1749143650188,30.0,2570.3,2570.2,1.928]
[1749143650421,4.0,2570.4,2569.9,16.0]
[1749143650618,30.0,2570.3,2570.0,3.89094122]
[1749143650913,4.0,2570.4,2570.3,3.89059642]
[1749143651285,10.807,2570.4,2570.3,3.89059642]
[1749143651629,4.0,2570.4,2570.3,3.89059642]
[1749143651864,10.807,2570.4,2570.3,3.89059642]
[1749143652366,10.806,2570.4,2570.3,3.89059642]
[1749143653228,10.806,2570.4,2570.3,5.21873048]
[1749143653229,4.0,2570.4,2570.3,5.21873048]
[1749143653526,1.13222467,2571.0,2570.6,0.55]
[1749143653763,1.13222467,2571.0,2570.6,4.44004445]
[1749143653764,4.0,2570.7,2570.6,4.44004445]
[1749143653959,6.806,2570.9,2570.6,4.44004445]
[1749143654859,6.806,2570.9,2570.5,4.44021205]
[1749143655065,30.0,2570.8,2570.5,3.89027951]
[1749143655470,33.88990859,2570.8,2570.3,16.0]
[1749143655763,6.805,2570.7,2570.3,19.8905556]
[1749143655966,6.805,2570.7,2570.4,3.89044506]
[1749143656151,30.0,2570.8,2570.5,3.89029223]
[1749143656332,6.805,2570.7,2570.5,3.89029223]
[1749143656763,30.0,2570.9,2570.4,3.89039354]
[1749143656931,6.804,2570.6,2570.5,3.89020431]
[1749143657131,6.804,2570.6,2570.4,3.89039354]
[1749143657358,6.804,2570.6,2570.4,16.0]
[1749143657528,6.804,2570.6,2570.4,3.89037288]
[1749143657731,6.804,2570.6,2570.5,3.89029371]
[1749143658329,6.804,2570.6,2570.4,3.89040146]
[1749143658535,6.804,2570.6,2570.5,3.89029371]
[1749143659626,6.804,2570.6,2570.4,3.89035561]
[1749143659950,6.804,2570.6,2570.5,3.89029371]
[1749143660847,6.804,2570.6,2570.1,17.3243]
[1749143661043,6.804,2570.6,2570.5,3.89029371]
[1749143661243,6.804,2570.6,2570.4,3.89042276]
[1749143661449,6.804,2570.6,2570.4,16.0]
[1749143661843,6.804,2570.6,2570.3,3.8905083]
[1749143662044,7.6366,2570.6,2570.3,3.89059152]
[1749143662473,0.37194422,2571.1,2570.1,0.7743]
[1749143662676,30.0,2570.9,2570.7,3.88990898]
[1749143663380,30.0,2570.9,2570.8,3.88983973]
[1749143663870,6.8,2570.9,2570.7,3.88991878]
[1749143664037,6.8,2570.8,2570.7,3.88991878]
[1749143664368,6.8,2570.8,2570.5,3.89022739]
[1749143664369,6.8,2570.8,2570.6,0.55]
[1749143664582,6.8,2570.8,2570.4,5.80944207]
[1749143664583,30.0,2570.7,2570.4,19.89035363]
[1749143664787,30.0,2570.7,2570.4,21.80935363]
[1749143664940,30.0,2570.7,2570.4,16.0]
[1749143665143,30.0,2570.7,2570.4,19.89043746]
[1749143666485,30.0,2570.5,2570.3,1.919]
[1749143666679,6.799,2570.4,2570.3,1.919]
[1749143667085,36.799,2570.4,2570.3,1.919]
[1749143667300,36.799,2570.4,2569.8,5.81031405]
[1749143667475,40.0,2570.3,2569.9,3.89108792]
[1749143667782,6.799,2570.4,2569.9,16.0]
[1749143667997,30.0,2570.1,2569.8,1.919]
[1749143668202,0.4653757,2570.9,2570.6,3.89014237]
[1749143668345,2.54630095,2571.0,2570.7,3.88999105]
[1749143668549,6.798,2570.9,2570.7,3.88990267]
[1749143669001,6.798,2570.9,2570.6,3.89014237]
[1749143669177,2.54630095,2571.0,2570.5,3.2709]
[1749143669178,6.43590482,2571.0,2570.5,23.16117431]
[1749143669348,40.0,2570.7,2570.6,3.88999557]
[1749143669552,6.797,2570.7,2570.6,3.88999557]
[1749143670759,6.797,2570.7,2570.6,4.44014237]
[1749143672470,2.54630095,2571.0,2570.6,4.44014237]
[1749143672661,32.54630095,2571.0,2570.9,3.88968843]
[1749143672845,43.71490772,2571.0,2570.9,3.88968843]
[1749143673050,43.71490772,2571.0,2570.8,3.88976163]
[1749143673247,30.0,2570.9,2570.8,3.88976163]
[1749143673482,30.0,2570.9,2570.7,3.88990701]
[1749143673649,30.0,2570.9,2570.8,3.88983973]
[1749143673847,4.0,2570.9,2570.8,4.43983973]
[1749143674083,4.0,2570.9,2570.8,6.15322024]
[1749143674282,10.795,2570.9,2570.8,6.15322024]
[1749143674481,2.54630095,2571.0,2570.9,4.43968843]
[1749143674693,9.34130095,2571.0,2570.9,4.43968843]
[1749143674853,13.34130095,2571.0,2570.9,4.43968843]
[1749143675049,2.54630095,2571.0,2570.9,5.83297583]
[1749143675391,9.34030095,2571.0,2570.9,5.83297583]
[1749143675590,9.34030095,2571.0,2570.9,4.43968843]
[1749143676388,2.54630095,2571.0,2570.9,4.43968843]
[1749143676566,9.33930095,2571.0,2570.9,4.43968843]
[1749143678712,9.33930095,2571.0,2570.9,0.55]
[1749143678913,1.20921788,2572.7,2571.3,0.55]
[1749143679213,0.7549,2573.2,2572.5,0.55]
[1749143679416,30.0,2572.5,2571.7,16.0]
[1749143679583,6.792,2572.4,2572.2,0.55]
[1749143679782,2.57903377,2572.3,2572.2,0.55]
[1749143680114,0.6792,2572.3,2572.2,0.87454031]
[1749143680296,7.4702,2572.3,2572.2,4.43772257]
[1749143680496,7.4702,2572.3,2571.8,0.4267]
[1749143680699,7.4702,2572.3,2572.2,3.88772257]
[1749143681173,7.4692,2572.3,2572.2,3.88772257]
[1749143681376,0.6792,2572.3,2572.2,3.88772257]
[1749143681713,30.0,2572.6,2572.4,3.88739753]
[1749143681916,6.79,2572.5,2572.4,3.88739753]
[1749143682326,6.79,2572.5,2571.9,0.977]
[1749143682505,6.79,2572.5,2572.0,0.55]
[1749143682689,6.79,2572.5,2572.3,3.88746204]
[1749143683018,30.0,2572.4,2572.3,3.88755291]
[1749143683438,0.7549,2572.7,2572.4,3.8874203]
[1749143683636,36.789,2572.6,2572.4,3.8874203]
[1749143683786,6.789,2572.5,2572.4,3.8874203]
[1749143683988,0.7549,2572.7,2572.4,3.8874203]
[1749143684188,6.789,2572.6,2572.4,3.88741461]
[1749143684598,6.789,2572.6,2572.2,3.88768585]
[1749143684943,6.789,2572.6,2572.4,3.88733751]
[1749143685118,0.94519,2572.5,2572.4,3.88733751]
[1749143685923,6.787,2572.5,2572.4,3.88733751]
[1749143687334,6.787,2572.5,2571.9,0.427]
[1749143687505,30.0,2572.4,2572.1,3.88784102]
[1749143687710,30.0,2572.3,2572.0,3.88798529]